Cogmind - Beta 13 @@@ ROGUE MODE // 2024.06.05 @ 18:26:39 Player: wojo Result: Destroyed by H-61 Shepherd with Heavy Assault Cannon Performance ------------- Evolutions (2) 1000 Regions Visited (6) 1200 Robots Destroyed (100) 500 Value Destroyed (2698) 2698 Prototype IDs (38) 760 Alien Tech Used (0) 0 Bonus (311) 311 TOTAL SCORE: 6469 Bonus ------- High Alert Combat Kills 11 Aligned with FarCom 300 Cogmind --------- Core Integrity 0/550 Matter 136/300 Energy 87/100 System Corruption 0% Temperature Cool (0) Movement Flying (32) Location -8/Materials Parts ------- > --- POWER (1) -------- (None) > --- PROPULSION (4) --- Improved Flight Unit Improved Flight Unit Cesium-ion Thruster > --- UTILITY (4) ------ Advanced Weight Redist. System Launcher Guidance Computer Hacking Suite Hacking Suite > --- WEAPON (2) ------- Missile Launcher Missile Launcher > --- INVENTORY (5) ---- Guided Plasma Cannon Precision Assault Rifle Precision Assault Rifle Missile Launcher Improved Datajack Peak State ------------ > --- POWER ------------ Light Deuterium Engine > --- PROPULSION ------- Improved Flight Unit Improved Flight Unit Improved Flight Unit Cesium-ion Thruster > --- UTILITY ---------- Advanced Weight Redist. System Launcher Guidance Computer Hacking Suite Hacking Suite > --- WEAPON ----------- Precision Assault Rifle Precision Assault Rifle > --- INVENTORY -------- Guided Plasma Cannon Missile Launcher Missile Launcher Missile Launcher Improved Datajack [Rating: 40] Favorites ----------- Power Ion Engine Engine Ion Engine Power Core Light Nuclear Core Propulsion Advanced Treads Treads Advanced Treads Leg Aluminum Leg Hover Unit Aerolev Unit Flight Unit Improved Flight Unit Utility Large Storage Unit Device Improved Heat Sink Storage Large Storage Unit Processor Transport Network Coupler Hackware Hacking Suite Weapon Minigun Energy Gun Improved Medium Laser Energy Cannon Beam Cannon Ballistic Gun Minigun Launcher Grenade Launcher Special Melee Weapon Improved Datajack Build | -11 -10 -9 -9 -9 -8 -8 ------- Run | Yrd Mat Mat Min Exi Min Mat Slots Evolved 4 | . . 2 . . . 2 Power . | . . . . . . . Propulsion 2 | . . 2 . . . . Utility 2 | . . . . . . 2 Weapon . | . . . . . . . Parts Attached 123 | 7 7 24 14 . . 71 Power 14 | 1 . 3 1 . . 9 Engine 8 | 1 . 3 1 . . 3 Core 6 | . . . . . . 6 Reactor . | . . . . . . . Propulsion 41 | 2 2 15 . . . 22 Treads 30 | 2 2 15 . . . 11 Leg 3 | . . . . . . 3 Wheel . | . . . . . . . Hover 1 | . . . . . . 1 Flight 7 | . . . . . . 7 Utility 16 | 2 2 . 1 . . 11 Device 7 | 1 . . 1 . . 5 Storage 2 | 1 1 . . . . . Processor 4 | . 1 . . . . 3 Hackware 3 | . . . . . . 3 Protection . | . . . . . . . Artifact . | . . . . . . . Weapon 52 | 2 3 6 12 . . 29 Energy Gun 5 | . . 3 . . . 2 Energy Cannon 3 | . 1 . . . . 2 Ballistic Gun 29 | 2 1 3 7 . . 16 Ballistic Cannon . | . . . . . . . Launcher 13 | . 1 . 4 . . 8 Special Weapon . | . . . . . . . Impact Weapon . | . . . . . . . Slashing Weapon . | . . . . . . . Piercing Weapon . | . . . . . . . Special Melee Weapon 2 | . . . 1 . . 1 Unidentified Prototypes 10 | . . 2 1 . . 7 Parts Lost 27 | . 2 3 1 . . 21 Power 7 | . . 2 1 . . 4 Propulsion 13 | . 2 . . . . 11 Utility 2 | . . . . . . 2 Weapon 5 | . . 1 . . . 4 Highest Loss Streak 9 | . 1 1 1 . . 9 To Critical Strikes . | . . . . . . . Average Slot Usage (%) 96 | . 98 98 98 99 88 92 Engine 8 | . 14 10 9 11 11 . Core 2 | . . . . . . 8 Treads 31 | . 26 42 44 44 44 15 Leg 3 | . . . . . . 12 Device 3 | . 4 . 6 10 . 5 Storage 10 | . 14 11 11 11 11 8 Processor 7 | . 9 11 4 . . 3 Hackware 4 | . . . . . . 15 Energy Gun 1 | . . 6 . . . . Energy Cannon 3 | . 10 1 . . . 2 Ballistic Gun 14 | . 13 13 20 22 22 13 Launcher 1 | . 3 1 . . . 1 Naked Turns . | . . . . . . . Heaviest Build 40 | 14 31 33 39 30 29 40 Greatest Support 92 | 40 40 92 88 88 88 90 Greatest Overweight (x) 6 | . 1 . . . . 6 Average Overweight (x) . | . . . . . . . Largest Inventory Capacity 15 | 8 15 15 15 15 15 15 Average Capacity 14 | 7 14 15 15 15 15 14 Most Carried 15 | 1 13 15 15 15 15 15 Average Carried 12 | . 9 14 14 14 15 13 Final Capacity 15 | 8 15 15 15 15 15 5 Final Carried 15 | 1 12 13 15 15 15 5 Class Distribution -------------------- 72% | Mutant 17% | Scavenger-Mutant 9% | Hacker-Mutant Dominant Class ---------------- Mutant | -10/Materials Mutant | -9/Materials Mutant | -9/Mines Mutant | -9/Exiles Mutant | -8/Mines Scavenger-Mutant | -8/Materials Resources | -11 -10 -9 -9 -9 -8 -8 ----------- Run | Yrd Mat Mat Min Exi Min Mat Matter Collected 2952 | 261 299 688 404 . . 1300 Remotely . | . . . . . . . Salvage Created 3538 | 23 601 1092 227 . . 1595 Parts 184 | 4 40 78 4 . . 58 Haulers Intercepted 8 | . 2 4 . . . 2 Recyclers Shooed 9 | . 1 3 2 . . 3 Parts Field Recycled . | . . . . . . . Retrieved Matter . | . . . . . . . Parts Self-Destructed . | . . . . . . . Prevented . | . . . . . . . Kills | -11 -10 -9 -9 -9 -8 -8 ------- Run | Yrd Mat Mat Min Exi Min Mat Combat Hostiles Destroyed 69 | . 13 19 11 . . 26 Guns 34 | . 5 11 5 . . 13 Cannons 12 | . 6 1 . . . 5 AOE 22 | . 2 6 6 . . 8 Classes Destroyed 15 | 1 7 3 2 . . 2 Worker 7 | . 1 2 . . . 4 Builder 2 | . 1 1 . . . . Tunneler 3 | 2 . . . . . 1 Hauler 8 | . 2 4 . . . 2 Recycler 8 | . . 2 2 . . 4 Operator 7 | . 2 2 . . . 3 Watcher 5 | . 1 2 . . . 2 Swarmer 9 | . 3 3 . . . 3 Grunt 33 | . 10 7 . . . 16 Brawler 1 | . . . . . . 1 Duelist 1 | . . 1 . . . . Sentry 12 | . . 8 . . . 4 Demolisher 2 | . . . 2 . . . Hunter 2 | . . . . . . 2 Assembled 9 | . . . 9 . . . Best Kill Streak 7 | 1 3 7 7 . . 4 Combat Bots Only 7 | . 3 5 7 . . 4 Max Kills in Single Turn 4 | 1 2 2 4 . . 2 Gunslinging . | . . . . . . . Exploded 4 | . 2 2 4 . . 2 Melee . | . . . . . . . Uniques/NPCs Destroyed . | . . . . . . . Combat | -11 -10 -9 -9 -9 -8 -8 -------- Run | Yrd Mat Mat Min Exi Min Mat Hostile Shots Fired 411 | . 67 92 26 . . 226 Missed 94 | . 15 20 9 . . 50 Damage Taken 5299 | . 710 999 562 . . 3028 Core 908 | . 122 140 69 . . 577 Absorbed by Shields . | . . . . . . . Core Remaining (%) 66 | 100 51 . . . 47 . Volleys Fired 293 | 5 63 83 26 . . 116 Largest 2 | 2 2 2 2 . . 2 Hottest 120 | 40 90 112 72 . . 120 Shots Fired 544 | 10 126 158 52 . . 198 Gun 440 | 10 85 128 48 . . 169 Cannon 66 | . 38 14 . . . 14 Launcher 38 | . 3 16 4 . . 15 Special . | . . . . . . . Kinetic 392 | 10 85 80 48 . . 169 Thermal 112 | . 38 60 . . . 14 Explosive 38 | . 3 16 4 . . 15 Electromagnetic 2 | . . 2 . . . . Robot Hit Streak 15 | 3 13 13 8 . . 15 Robot Miss Streak 5 | 1 5 5 3 . . 2 Penetration Max 1 | . . . . . . 1 Secondary Targets 2 | . 1 . 1 . . . Max Gunslinging Chain 1 | . 1 . 1 . . . Shots Hit Robots 355 | 6 79 97 29 . . 144 Core Hits 170 | 2 29 50 23 . . 66 Critical Kills 1 | . . . . . . 1 Critical Parts Destroyed 5 | . 1 . 1 . . 3 Critical Strikes 10 | . 1 4 1 . . 4 Burn 4 | . . 4 . . . . Destroy 6 | . 1 . 1 . . 4 Melee Attacks . | . . . . . . . Impact . | . . . . . . . Slashing . | . . . . . . . Piercing . | . . . . . . . Sneak Attacks . | . . . . . . . Combat Hostiles . | . . . . . . . Follow-up Attacks . | . . . . . . . Damage Inflicted 8166 | 70 1282 2267 976 . 3 3568 Guns 4793 | 70 678 1288 478 . . 2279 Cannons 1063 | . 440 139 . . . 484 Explosions 2202 | . 114 797 494 . . 797 Melee . | . . . . . . . Ramming 108 | . 50 43 4 . 3 8 Kinetic 4304 | 70 678 799 478 . . 2279 Thermal 1517 | . 440 593 . . . 484 Explosive 2202 | . 114 797 494 . . 797 Electromagnetic 35 | . . 35 . . . . Impact . | . . . . . . . Slashing . | . . . . . . . Piercing . | . . . . . . . Highest Corruption . | . . . . . . . Average Corruption . | . . . . . . . Corruption Purged . | . . . . . . . Corruption Blocked . | . . . . . . . Overload Shots . | . . . . . . . Overflow Damage 103 | . 4 38 37 . . 24 Projectiles 15 | . . . . . . 15 Explosions 88 | . 4 38 37 . . 9 Melee . | . . . . . . . Knockbacks . | . . . . . . . Impact . | . . . . . . . Kinetic . | . . . . . . . Secondary . | . . . . . . . Self-Inflicted Damage 276 | . 48 52 126 . . 50 Shots 9 | . 2 3 3 . . 1 Rammed 19 | 1 10 2 1 . 1 4 Targets Rammed 22 | 1 11 4 1 . 1 4 Kicked . | . . . . . . . Crushed 3 | . 1 2 . . . . Highest Temperature 557 | . 225 237 9 . . 557 Average Temperature 67 | . 52 47 4 . . 122 Received Heat Transfer 1977 | . 333 420 . . . 1224 Effects 8 | . . . . . . 8 Shutdowns 2 | . . . . . . 2 Energy Bleed 1 | . . . . . . 1 Interference 1 | . . . . . . 1 Matter Decay 2 | . . . . . . 2 Short Circuit 1 | . . . . . . 1 Damage (core) 1 | . . . . . . 1 Siege Activations . | . . . . . . . Robots Corrupted . | . . . . . . . Combat Hostiles . | . . . . . . . Parts Fried . | . . . . . . . Impact Corruptions . | . . . . . . . Robots Melted 1 | . . 1 . . . . Combat Hostiles 1 | . . 1 . . . . Parts Melted 4 | . 2 1 . . . 1 Heat Transferred 3710 | . 925 1665 . . . 1120 Parts Sabotaged . | . . . . . . . Parts Stolen . | . . . . . . . Parts Stripped . | . . . . . . . Power Chain Reactions . | . . . . . . . Alert | -11 -10 -9 -9 -9 -8 -8 ------- Run | Yrd Mat Mat Min Exi Min Mat Peak Influence 411 | 10 208 411 196 . . 213 Initial 96 | . 6 48 96 . . . Average 133 | 3 78 254 53 . . 91 Maximum Alert Level 2 | . 1 2 . . . 1 Low Security (%) 69 | 100 94 13 100 . 100 94 Level 1 28 | . 5 81 . . . 5 Level 2 1 | . . 4 . . . . Level 3 . | . . . . . . . Level 4 . | . . . . . . . Level 5 . | . . . . . . . High Security . | . . . . . . . Max Security . | . . . . . . . Squads Dispatched 11 | . 3 4 . . . 4 Investigation 4 | . 1 1 . . . 2 Extermination . | . . . . . . . Reinforcement 7 | . 2 3 . . . 2 Assault . | . . . . . . . Garrison . | . . . . . . . Intercept . | . . . . . . . Searches Triggered . | . . . . . . . Construction Impeded . | . . . . . . . Haulers Reinforced . | . . . . . . . Active Scanning Responses . | . . . . . . . Cargo Convoy Interrupts . | . . . . . . . Stealth | -11 -10 -9 -9 -9 -8 -8 --------- Run | Yrd Mat Mat Min Exi Min Mat Distress Signals 4 | . . 1 . . . 3 Communications Jammed . | . . . . . . . Distress Signals . | . . . . . . . Times Spotted 119 | . 27 30 22 . . 40 Peak Tracking Total 14 | . 3 4 14 . . 8 Tactical Retreats 5 | . 1 . 3 . . 1 Traps | -11 -10 -9 -9 -9 -8 -8 ------- Run | Yrd Mat Mat Min Exi Min Mat Traps Triggered 3 | . 1 1 . . . 1 Indirectly . | . . . . . . . Trap Hack Attempts 8 | . . . . . . 8 Triggered . | . . . . . . . Disarmed 2 | . . . . . . 2 Reprogrammed . | . . . . . . . Reused . | . . . . . . . Traps Extracted . | . . . . . . . Installed . | . . . . . . . Triggered . | . . . . . . . Machines | -11 -10 -9 -9 -9 -8 -8 ---------- Run | Yrd Mat Mat Min Exi Min Mat Machines Disabled 8 | . 4 1 . . . 3 Max in Single Turn 2 | . 2 1 . . . 1 Machines Repaired . | . . . . . . . Machines Dismantled . | . . . . . . . Machines Sabotaged . | . . . . . . . Overloaded Fab Kills . | . . . . . . . Hacking | -11 -10 -9 -9 -9 -8 -8 --------- Run | Yrd Mat Mat Min Exi Min Mat Machines Accessed 18 | . 3 6 . 1 . 8 Terminals 11 | . 3 2 . . . 6 Fabricators . | . . . . . . . Repair Stations . | . . . . . . . Recycling Units 3 | . . 2 . . . 1 Scanalyzers 3 | . . 2 . . . 1 Garrison Access . | . . . . . . . Total Hacks 55 | . 5 20 . 1 . 29 Successful 34 | . 1 10 . 1 . 22 Failed 21 | . 4 10 . . . 7 Catastrophic 3 | . 2 . . . . 1 Database Lockouts . | . . . . . . . Manual 4 | . . . . 1 . 3 Terminals 29 | . 5 6 . . . 18 Fabricators . | . . . . . . . Repair Stations . | . . . . . . . Recycling Units 6 | . . 5 . . . 1 Scanalyzers 19 | . . 9 . . . 10 Garrison Access . | . . . . . . . Terminal Hacks 16 | . 1 3 . 1 . 11 Robot Analysis 1 | . . . . . . 1 Prototype ID Bank 3 | . . 1 . . . 2 Branch Access Points 1 | . . . . . . 1 Alert Level 1 | . . . . . . 1 Locate Traps 1 | . . 1 . . . . Transport Status 1 | . . . . . . 1 Hauler Manifests 4 | . 1 . . . . 3 Registered Components 1 | . . 1 . . . . Zone Layout 2 | . . . . . . 2 Derelict Proto ID Bank 1 | . . . . 1 . . Fabricator Hacks . | . . . . . . . Repair Station Hacks . | . . . . . . . Recycling Unit Hacks 2 | . . 1 . . . 1 Report Inventory 2 | . . 1 . . . 1 Scanalyzer 16 | . . 6 . . . 10 Insert Component 9 | . . 4 . . . 5 Analyze 7 | . . 2 . . . 5 Garrison Access Hacks . | . . . . . . . Unauthorized Hacks . | . . . . . . . Terminals . | . . . . . . . Fabricators . | . . . . . . . Repair Stations . | . . . . . . . Recycling Units . | . . . . . . . Scanalyzers . | . . . . . . . Garrison Access . | . . . . . . . Data Cores Recovered 1 | . . . . . . 1 Used 1 | . . . . . . 1 Hacking Detections 12 | . 2 5 . . . 5 Full Trace Events 4 | . 1 2 . . . 1 Feedback Events . | . . . . . . . Feedback Blocked . | . . . . . . . Robot Schematics Acquired . | . . . . . . . Robots Built . | . . . . . . . Authchips . | . . . . . . . Time . | . . . . . . . Total Robot Build Rating . | . . . . . . . Part Schematics Acquired 7 | . . 2 . . . 5 Parts Built . | . . . . . . . Authchips . | . . . . . . . Time . | . . . . . . . Total Part Build Rating . | . . . . . . . Parts Repaired . | . . . . . . . Time . | . . . . . . . Parts Recycled . | . . . . . . . Recycled Matter . | . . . . . . . Retrieved Matter . | . . . . . . . Retrieved Components . | . . . . . . . Parts Scanalyzed 8 | . . 3 . . . 5 Part Schematics Acquired 7 | . . 2 . . . 5 Parts Damaged 1 | . . 1 . . . . Bothacking | -11 -10 -9 -9 -9 -8 -8 ------------ Run | Yrd Mat Mat Min Exi Min Mat Used RIF Installer . | . . . . . . . Robots Hacked . | . . . . . . . Non-combat . | . . . . . . . Combat . | . . . . . . . Robot Hacks Applied . | . . . . . . . Relay Couplers Released . | . . . . . . . Fabnet Peak Effective % . | . . . . . . . Robots Rewired . | . . . . . . . Allies Hacked . | . . . . . . . Hacks Repelled . | . . . . . . . Allies | -11 -10 -9 -9 -9 -8 -8 -------- Run | Yrd Mat Mat Min Exi Min Mat Total Allies 3 | . . . 3 . . . Largest Group 3 | . . . 3 3 3 3 Highest-Rated Group 40 | . . . 40 40 40 40 Highest-Rated Ally 16 | . . . 16 16 16 16 Total Orders . | . . . . . . . Ally Attacks 17 | . . . 2 . . 15 Total Damage 202 | . . . 26 . . 176 Kills 1 | . . . 1 . . . Allies Corrupted . | . . . . . . . Allies Melted . | . . . . . . . Intel | -11 -10 -9 -9 -9 -8 -8 ------- Run | Yrd Mat Mat Min Exi Min Mat Robot Analysis Total 1 | . . . . . . 1 Derelict Logs Recovered 1 | . . . 1 . . . Drone Launches . | . . . . . . . Drone Recoveries . | . . . . . . . Exploration | -11 -10 -9 -9 -9 -8 -8 ------------- Run | Yrd Mat Mat Min Exi Min Mat Turns Passed 7157 | 135 1539 2151 860 348 18 2106 Spaces Moved 3989 | 70 797 1191 497 239 12 1183 Core 7 | 3 . . . . . 4 Treads 3212 | 67 797 1191 497 239 12 409 Legs 469 | . . . . . . 469 Wheels . | . . . . . . . Hover . | . . . . . . . Flight 301 | . . . . . . 301 Fastest Speed 29 | 50 160 145 145 145 145 29 Average Speed 149 | 155 164 155 145 145 145 136 Slowest Speed 350 | 160 240 160 145 145 145 350 Overloaded Moves . | . . . . . . . Propulsion Burnouts . | . . . . . . . Robots Hopped 2 | . . . . . . 2 Cave-ins Triggered . | . . . . . . . Exploration Rate (%) 58 | 4 97 91 93 61 7 55 Regions Visited 6 Branch Regions 3 Pre-discovered Areas . | . . . . . . . Known Exits Taken . | . . . . . . . Unknown Exits Taken 6 | 1 1 1 1 1 1 . Scrap Searched 1 | . . . 1 . . . Spaces Dug . | . . . . . . . Terrain Destroyed 337 | . 14 97 65 . . 161 Melee . | . . . . . . . Projectile 1 | . . . 1 . . . AOE 336 | . 14 97 64 . . 161 Terrain Rammed . | . . . . . . . Walls Destroyed . | . . . . . . . Machines Disabled . | . . . . . . . Actions | -11 -10 -9 -9 -9 -8 -8 --------- Run | Yrd Mat Mat Min Exi Min Mat Total 4658 | 83 893 1358 587 241 12 1484 Wait 100 | . 3 5 46 . . 46 Move 3979 | 69 796 1190 496 238 11 1179 Hop 2 | . . . . . . 2 Pick Up 59 | 1 11 22 3 1 . 21 Fast Attach 38 | 7 1 6 1 . . 23 Attach 30 | . 2 3 1 . . 24 Detach 10 | . 1 . . . . 9 Swap 55 | . 4 15 12 . . 24 Drop 62 | . 1 30 1 2 . 28 Fire 293 | 5 63 83 26 . . 116 Melee . | . . . . . . . Ram . | . . . . . . . Kick . | . . . . . . . Crush 22 | 1 11 4 1 . 1 4 Escape Stasis . | . . . . . . . Rewire . | . . . . . . . Trap 8 | . . . . . . 8 Miscellaneous . | . . . . . . . Route ------- -11/Scrapyard -10/Materials (discovered 5 exits: *Mat x3 / [*Min x2]) -9/Materials (discovered 5 exits: *Mat x3 / [*Min x2]) -9/Mines (discovered 3 exits: *Mat x2 / *Exi) -9/Exiles -8/Mines -8/Materials (discovered 2 exits: *Fac x2) History --------- Turn | Location | Event 9 | -11/Scrapyard | Discovered new exit (range 15) 136 | -11/Scrapyard | Entered Materials 316 | -10/Materials | Build established: Mutant 387 | -10/Materials | Discovered new exit (range 7) 466 | -10/Materials | Discovered new exit (range 15) 1059 | -10/Materials | Discovered new exit (range 6) 1240 | -10/Materials | Discovered new exit (range 10) 1541 | -10/Materials | Discovered new exit (range 5) 1675 | -10/Materials | Entered another Materials area 1675 | -9/Materials | Evolved 2 slots: Propulsion x2 1997 | -9/Materials | Discovered new exit (range 15) 2241 | -9/Materials | Discovered new exit (range 15) 2449 | -9/Materials | Discovered new exit (range 10) 2582 | -9/Materials | Discovered new exit (range 7) 3034 | -9/Materials | Discovered new exit (range 16) 3826 | -9/Materials | Entered Mines 3864 | -9/Mines | Met a Derelict bent on vengeance 3889 | -9/Mines | Learned 2 Materials zone layouts 4025 | -9/Mines | Found a damaged Exp. Sensor Array with a note attached 4028 | -9/Mines | Found Prototype Device 4097 | -9/Mines | Assembled infested the area 4102 | -9/Mines | Assisted by a Guerilla fighting off Assembled 4149 | -9/Mines | Destroyed 7 combat bots 4160 | -9/Mines | Core integrity fell below 50% 4201 | -9/Mines | Identified Exp. Sensor Array 4369 | -9/Mines | Discovered new exit (range 8) 4373 | -9/Mines | Discovered new exit (range 5) 4508 | -9/Mines | Found a hidden stash of uninstalled traps 4525 | -9/Mines | Assisted by bots powering up and referring to "LRC-V3" 4678 | -9/Mines | Deemed a non-threat by the Exiles lab entrance 4679 | -9/Mines | Discovered new exit (range 5) 4686 | -9/Mines | Entered Exiles 4686 | -9/Exiles | Accompanied by 3 allies 4727 | -9/Exiles | Met 8R-AWN 4752 | -9/Exiles | Met EX-HEX 4795 | -9/Exiles | Met EX-BIN 4816 | -9/Exiles | Aligned with FarCom system 4817 | -9/Exiles | Given EX-Vault access code 4850 | -9/Exiles | Opened EX-Vault 4861 | -9/Exiles | Found Gui. Plasma Cannon 4892 | -9/Exiles | Warned to stay clear of 0b10 Research branches 4933 | -9/Exiles | Met EX-DEC 4985 | -9/Exiles | Discovered new exit (range 12) 5034 | -9/Exiles | Left Exiles lab with Gui. Plasma Cannon 5034 | -9/Exiles | Entered Mines 5034 | -8/Mines | Accompanied by 3 allies 5034 | -8/Mines | Discovered new exit (range 9) 5052 | -8/Mines | Entered Materials 5052 | -8/Materials | Accompanied by 3 allies 5052 | -8/Materials | Evolved 2 slots: Utility x2 5053 | -8/Materials | Identified exit to Factory 5619 | -8/Materials | Build established: Hacker-Mutant 5655 | -8/Materials | Discovered exit to Factory (range 16) 5786 | -8/Materials | Lost 4 parts (3n1w) 5960 | -8/Materials | Core integrity fell below 50% 5983 | -8/Materials | Core integrity fell below 20% 6029 | -8/Materials | Lost 9 parts (2p5n1u1w) 6309 | -8/Materials | Build established: Scavenger-Mutant 7158 | -8/Materials | Destroyed by H-61 Shepherd with Heavy Assault Cannon Last Messages --------------- 07127_ Identified Hvy. Ion Engine. 07130_ Dropped Hvy. Ion Engine. 07130_ Acquired Lgt. Deuterium Engine. 07132_ Acquired 60 matter. 07134_ The unstable cave ceiling collapses. 07141_ H-61 Shepherd calls for reinforcements. 07141_ ALERT: Hostile activity reported, dispatching reinforcements to area. 07141_ Penetrated by Slug. 07141_ Knocked back. 07145_ The unstable cave ceiling collapses. 07145_ Imp. Flight Unit destroyed. 07146_ Acquired 12 matter. 07151_ G-47 Trooper destroyed. 07152_ Penetrated by Slug. 07155_ G-47 Trooper destroyed. 07155_ K-01 Serf destroyed. 07155_ Lgt. Deuterium Engine destroyed. 07156_ The unstable cave ceiling collapses. 07157_ K-01 Serf collects debris. Map ----- +----------------------------------------------------+ | | | | | | | ???????????????????????????????????????????????? | | ???????????????????????????????????????????????? | | ???????????????????????????????????????????????? | | ???????????????????????????????????????????????? | | ???????????????????????????????????????????????? | | ???????????????????????????????????????????????? | | ???????????????????????????????????????????????? | | ???????????????????????????????????????????????? | | ???????????????????????????????????????????????? | | ?#########??##########?????????????????????????? | | ? #??# #?????????????????????????? | | ?""" #??# #?????????????????????????? | | #""" #??# #???????????????????####### | | #""" #??# #???????????????????# | | # #### ! #???????????????????# < | | #""" # # #???????????????????# | | #""" ! # # #???????????????????# | | #""" + + ! #???????????????????# | | # # # #???????????????????# | | ########## ##############??????????????## ### | | # # #### # # ######## # * #? | | # "" + /! % % #? | | # ""S # ![ !%@ H ## | | # "" # ### k*%!!% * # | | # ######## # ######## = # | | # # ## ## #???????????#?????????? | | #[[* # ## ## #?????????????????????? | | #[[ # ## ########?????????????????????? | | #[* # # #???????????????????????????? | | # + #???????????????????????????? | | = #* T #???????????????????????????? | | # # # #???????????????????????????# | | # ## ##???????????????????????????? | | ## #????????????????????????????? | | # # ## #????????????????????????????? | | # ## ## ######???????????????????????? | | ### # #### ? ## # ######?###########??????? | | ??##?##????##### # #?# #??????? | | ???????????# # #?# ] "T" #??????? | | ???????????# =+% " #?# """ #??????? | | ???????????#!! =# #?# #??????? | | ???????????#!! # ##############+##+##??????? | | ???????????# ######?# #???????? | | ???????????# # #??# ####???????? | | ???????????##### # #??# #??????????? | | ???????????????# # #??# """ ############ | | ???????????????# # #??# """ | +----------------------------------------------------+ Best States ------------- Heat Dissipation 45 Energy Generation 14 Energy Capacity 280 Matter Stores 300 Matter Capacity 300 Sight Range 16 Robot Scan Range 20 Terrain Scan Range 16 Terrain Scan Density 10 Additional Mass Support 9 Evasion (%) 64 Targeting Accuracy 8 Launcher Accuracy 20 Recoil Reduction 4 Offensive Hacking 20 Defensive Hacking 10 Item Schematics ----------------- Hacking Suite | -9/Materials | Scanalyzed Minigun | -9/Materials | Scanalyzed Missile Launcher | -8/Materials | Scanalyzed Prc. Assault Rifle | -8/Materials | Scanalyzed Imp. Flight Unit | -8/Materials | Scanalyzed Adv. Weight Redist. System | -8/Materials | Scanalyzed Cesium-ion Thruster | -8/Materials | Scanalyzed Robot Schematics ------------------ None Fabricated ------------ Nothing Alien Tech Used ----------------- None Achievements -------------- None Challenges ------------ None Game ------ Seed PhasingBombardmentBay Manual? 0 Play Time 01:42:36 Cumulative 28.1 hours Start 2024.06.05 @ 15:34:43 End 2024.06.05 @ 18:26:39 Sessions 3 Manual Loads 0 Difficulty Rogue Special Mode None Game No. 45 Rogue 45 Adventurer 0 Explorer 0 Win Type - Total 0 Types 0/0/0/0/0/0/0/0/0 Lore% 22 Gallery% 26 Achievement% 18 Wizard Run 0 Options --------- Layout 1 ASCII 0 Keyboard 0 Movement Arrows Keybinds 0 Fullscreen 1 Font 16/Terminus Map View 50x40 Zoom Use 0% Tactical HUD 1 Map Filters NONE Filters NONE Steam SD RUN: 50bee4c4-2ffb-48f2-9e50-5a9d0107cd3a